bitfinex/quotes_BTCUSD_20250903
["timestamp","ask_amount","ask_price","bid_price","bid_amount"]
[1756872514135,1.41891767,111240.0,111230.0,0.09829707]
[1756872514357,1.41891767,111240.0,111230.0,0.10028707]
[1756872514549,1.44594792,111240.0,111230.0,0.10028707]
[1756872514778,1.88284792,111240.0,111230.0,0.10351707]
[1756872515344,1.88284792,111240.0,111230.0,0.02997076]
[1756872517230,2.22008742,111240.0,111230.0,0.00536076]
[1756872517434,2.22008703,111240.0,111230.0,0.00536076]
[1756872517703,2.26731134,111240.0,111230.0,0.00536076]
[1756872518442,2.27653019,111240.0,111230.0,0.00536076]
[1756872518632,2.27653019,111240.0,111230.0,0.00213076]
[1756872518832,2.27653019,111240.0,111230.0,0.00514076]
[1756872519084,2.27653019,111240.0,111230.0,0.00213076]
[1756872519227,2.33493588,111240.0,111230.0,0.00213076]
[1756872519854,2.33286588,111240.0,111230.0,0.00213076]
[1756872521214,1.95867448,111240.0,111230.0,0.00514076]
[1756872522408,1.95236493,111240.0,111230.0,0.00514076]
[1756872522614,1.51546493,111240.0,111230.0,0.00514076]
[1756872523424,1.51546493,111240.0,111230.0,0.00213076]
[1756872523853,1.51546493,111240.0,111230.0,0.00514076]
[1756872524043,1.51546493,111240.0,111230.0,0.00213076]
[1756872525890,1.51753493,111240.0,111230.0,0.00213076]
[1756872526094,1.51757493,111240.0,111230.0,0.00213076]
[1756872528389,1.50143153,111240.0,111230.0,0.00213076]
[1756872528640,1.59334752,111240.0,111230.0,0.00213076]
[1756872529628,1.59334752,111240.0,111230.0,0.00014076]
[1756872530051,1.91120323,111240.0,111230.0,0.00014076]
[1756872530814,1.91220323,111240.0,111230.0,0.00014076]
[1756872531222,2.86477036,111240.0,111230.0,0.00014076]
[1756872531469,2.92309911,111240.0,111230.0,0.00014076]
[1756872531889,2.97309911,111240.0,111230.0,0.00014076]
[1756872532091,2.01953198,111240.0,111230.0,0.00014076]
[1756872532710,2.02052044,111240.0,111230.0,0.00014076]
[1756872533481,2.01952044,111240.0,111230.0,0.00014076]
[1756872533903,2.02252044,111240.0,111230.0,0.00014076]
[1756872534397,2.97308757,111240.0,111230.0,0.00014076]
[1756872534574,2.97408757,111240.0,111230.0,0.00014076]
[1756872535998,2.97508757,111240.0,111230.0,0.00014076]
[1756872536845,2.82448757,111240.0,111230.0,0.00014076]
[1756872537051,2.02148044,111240.0,111230.0,0.00014076]
[1756872537651,1.92956445,111240.0,111230.0,0.00014076]
[1756872540499,2.88317158,111240.0,111230.0,0.00014076]
[1756872540696,2.95742311,111240.0,111230.0,0.00014076]
[1756872541415,2.95742311,111240.0,111230.0,1e-08]
[1756872541843,2.96212325,111240.0,111230.0,1e-08]
[1756872542046,3.04562823,111240.0,111230.0,1e-08]
[1756872542219,3.04462823,111240.0,111230.0,1e-08]
[1756872542427,3.05770465,111240.0,111230.0,1e-08]
[1756872542626,3.05970465,111240.0,111230.0,1e-08]
[1756872542834,3.06370465,111240.0,111230.0,1e-08]
[1756872543036,3.06170465,111240.0,111230.0,1e-08]
[1756872543415,1.57892092,111240.0,111230.0,1e-08]
[1756872543715,2.43062198,111240.0,111230.0,1e-08]
[1756872544341,2.42662198,111240.0,111230.0,1e-08]
[1756872545154,2.42661325,111240.0,111230.0,1e-08]
[1756872545377,2.42961325,111240.0,111230.0,1e-08]
[1756872545739,2.01362123,111240.0,111230.0,1e-08]
[1756872546633,1.86306123,111240.0,111230.0,1e-08]
[1756872546831,2.01362123,111240.0,111230.0,1e-08]
[1756872548023,2.03041778,111240.0,111230.0,1e-08]
[1756872553893,2.45476831,111240.0,111230.0,1e-08]
[1756872556680,2.45477316,111240.0,111230.0,1e-08]
[1756872557246,2.40630071,111240.0,111230.0,1e-08]
[1756872560379,2.47083391,111240.0,111230.0,1e-08]
[1756872561311,2.46243055,111240.0,111230.0,1e-08]
[1756872564645,0.54076259,111220.0,111210.0,0.00317]
[1756872564848,1.82992469,111220.0,111210.0,0.00331078]
[1756872565044,1.82992469,111220.0,111210.0,0.00218078]
[1756872565254,1.85696624,111220.0,111210.0,0.00218078]
[1756872565862,1.85796624,111220.0,111210.0,0.00218078]
[1756872566282,1.86001624,111220.0,111210.0,0.00218078]
[1756872568283,1.83579108,111220.0,111210.0,0.00218078]
[1756872568486,1.83872108,111220.0,111210.0,0.00014078]
[1756872568978,1.88872108,111220.0,111210.0,0.00218078]
[1756872570004,1.88370108,111220.0,111210.0,0.00535078]
[1756872570454,1.45935055,111220.0,111210.0,0.00535078]
[1756872570847,1.88370108,111220.0,111210.0,0.00535078]
[1756872572831,1.88370108,111220.0,111210.0,0.00218078]
[1756872574144,1.88575108,111220.0,111210.0,0.00218078]
[1756872576160,1.88370108,111220.0,111210.0,0.00218078]
[1756872576356,1.67173101,111220.0,111210.0,0.00218078]
[1756872576576,1.85155478,111220.0,111210.0,0.00218078]
[1756872576938,1.85360478,111220.0,111210.0,0.00218078]
[1756872577380,1.82127766,111220.0,111210.0,0.00218078]
[1756872578398,1.84221648,111220.0,111210.0,0.00218078]
[1756872579612,1.93413247,111220.0,111210.0,0.00218078]
[1756872579829,1.93722247,111220.0,111210.0,0.00218078]
[1756872580236,1.84221648,111220.0,111210.0,0.00218078]
[1756872580398,1.84530648,111220.0,111210.0,0.00218078]
[1756872582922,1.82850993,111220.0,111210.0,0.00218078]
[1756872583083,1.84547349,111220.0,111210.0,0.00218078]
[1756872585825,1.84547349,111220.0,111210.0,0.00014078]
[1756872586411,1.87780061,111220.0,111210.0,0.00014078]
[1756872586625,1.9697166,111220.0,111210.0,0.00014078]
[1756872588415,1.87780061,111220.0,111210.0,0.00014078]
[1756872590764,1.85349368,111220.0,111210.0,0.00014078]
[1756872590976,1.91965724,111220.0,111210.0,0.00014078]
[1756872591182,1.91975476,111220.0,111210.0,0.00014078]
[1756872591401,1.9244549,111220.0,111210.0,0.00014078]
[1756872591695,1.96778269,111220.0,111210.0,0.00014078]
[1756872591950,0.20079493,111200.0,111190.0,0.0004]
[1756872592159,1.30679025,111200.0,111190.0,0.0004]
[1756872592363,1.81052368,111200.0,111190.0,0.0004]
[1756872592575,1.83757051,111200.0,111190.0,0.0004]
[1756872592780,1.87798133,111200.0,111190.0,0.0004]
[1756872593251,1.81949732,111200.0,111190.0,0.0004]
[1756872593473,1.87918133,111200.0,111190.0,0.0024]
[1756872593899,1.87918133,111200.0,111190.0,0.0004]
[1756872594106,1.87918133,111200.0,111190.0,0.0024]
[1756872594308,1.83059553,111200.0,111190.0,0.0004]
[1756872595135,1.94675444,111200.0,111190.0,0.0004]
[1756872595800,1.85483845,111200.0,111190.0,0.0004]
[1756872599835,1.70323845,111200.0,111190.0,0.0004]
[1756872600036,1.85467845,111200.0,111190.0,0.0004]
[1756872600279,1.85461757,111200.0,111190.0,0.0004]
[1756872602420,1.82222704,111200.0,111190.0,0.0004]
[1756872603572,2.88418182,111200.0,111190.0,0.0004]
[1756872605359,2.88426182,111200.0,111190.0,0.0004]
[1756872606344,2.88424596,111200.0,111190.0,0.0004]
[1756872606548,2.8889461,111200.0,111190.0,0.0004]
[1756872608953,2.98086209,111200.0,111190.0,0.0004]
[1756872609324,3.01325262,111200.0,111190.0,0.0004]
[1756872609942,2.99643368,111200.0,111190.0,0.0004]
[1756872610145,3.01324673,111200.0,111190.0,0.0004]
[1756872610910,2.92133074,111200.0,111190.0,0.0004]
[1756872612730,2.92133747,111200.0,111190.0,0.0004]
[1756872612933,2.92233747,111200.0,111190.0,0.0004]
[1756872613380,2.92133747,111200.0,111190.0,0.0004]
[1756872613751,2.92433747,111200.0,111190.0,0.0004]
[1756872613974,3.01425346,111200.0,111190.0,0.0004]
[1756872614330,3.01625346,111200.0,111190.0,0.0004]
[1756872615387,2.99201054,111200.0,111190.0,0.0004]
[1756872616734,3.04959634,111200.0,111190.0,0.0004]
[1756872616925,3.04059634,111200.0,111190.0,0.0004]
[1756872619191,3.00820581,111200.0,111190.0,0.0004]
[1756872621125,2.95962001,111200.0,111190.0,0.0004]
[1756872621748,2.95962001,111200.0,111190.0,1e-08]
[1756872621958,2.99123722,111200.0,111190.0,1e-08]
[1756872622167,0.51988846,111180.0,111170.0,0.0004]
[1756872622391,2.81278961,111180.0,111170.0,0.0004]
[1756872622594,2.81476961,111180.0,111170.0,0.00254]
[1756872622809,2.84182029,111180.0,111170.0,0.00254]
[1756872623017,2.83984029,111180.0,111170.0,0.00254]
[1756872623221,2.83984029,111180.0,111170.0,0.00354]
[1756872623429,2.83984029,111180.0,111170.0,0.00400961]
[1756872623632,2.83984029,111180.0,111170.0,0.00500961]
[1756872624047,1.88447237,111180.0,111170.0,0.00823961]
[1756872624464,2.32137237,111180.0,111170.0,0.00823961]
[1756872626400,1.88447237,111180.0,111170.0,0.00823961]
[1756872627164,1.9087507,111180.0,111170.0,0.00823961]
[1756872628051,1.9087507,111180.0,111170.0,0.00500961]
[1756872628052,1.9107307,111180.0,111170.0,0.00500961]
[1756872629453,1.9138007,111180.0,111170.0,0.00500961]
[1756872631500,1.9107307,111180.0,111170.0,0.00500961]
[1756872632672,1.9138007,111180.0,111170.0,0.00500961]
[1756872634760,2.00402745,111180.0,111170.0,0.00500961]
[1756872634892,1.98444926,111180.0,111170.0,0.00500961]
[1756872635094,1.89422251,111180.0,111170.0,0.00500961]
[1756872635322,1.89425933,111180.0,111170.0,0.00500961]
[1756872635517,1.89425933,111180.0,111170.0,0.00286961]
[1756872635941,1.91519815,111180.0,111170.0,0.00286961]
[1756872636549,2.87052607,111180.0,111170.0,0.00286961]
[1756872636774,2.87052607,111180.0,111170.0,0.00186961]
[1756872636939,2.87054069,111180.0,111170.0,0.00086961]
[1756872638243,2.92054069,111180.0,111170.0,0.00086961]
[1756872638799,2.95786343,111180.0,111170.0,0.00086961]
[1756872639221,2.95316329,111180.0,111170.0,0.00086961]
[1756872639810,3.00176306,111180.0,111170.0,0.00086961]
[1756872650387,2.96936321,111180.0,111170.0,0.00086961]
[1756872654218,2.96936321,111180.0,111170.0,1e-08]
[1756872654432,2.97076344,111180.0,111170.0,1e-08]
[1756872654870,2.97546358,111180.0,111170.0,1e-08]
[1756872655992,2.97646358,111180.0,111170.0,1e-08]
[1756872656401,2.97846358,111180.0,111170.0,1e-08]
[1756872656633,2.97646358,111180.0,111170.0,1e-08]
[1756872657057,2.97846358,111180.0,111170.0,1e-08]
[1756872657265,2.97746358,111180.0,111170.0,1e-08]
[1756872657475,2.97846358,111180.0,111170.0,1e-08]
[1756872660348,2.97806358,111180.0,111170.0,1e-08]
[1756872661071,1.47524875,111160.0,111150.0,0.07334632]
[1756872661278,2.7409134,111160.0,111150.0,0.07343067]
[1756872661486,1.78558548,111160.0,111150.0,0.07258067]
[1756872661711,2.31264026,111160.0,111150.0,0.07258067]
[1756872662327,3.290857,111160.0,111150.0,0.00263435]
[1756872662539,3.32619011,111160.0,111150.0,0.00263435]
[1756872662762,3.39451509,111160.0,111150.0,0.00048435]
[1756872663180,3.39451509,111160.0,111150.0,0.00148435]
[1756872663397,3.43433243,111160.0,111150.0,0.00148435]
[1756872663609,3.41109745,111160.0,111150.0,0.00663435]
[1756872663819,3.41109745,111160.0,111150.0,0.00363435]
[1756872664022,3.41109745,111160.0,111150.0,0.00463435]
[1756872664979,2.75957745,111160.0,111150.0,0.00463435]
[1756872665193,2.91117745,111160.0,111150.0,0.00463435]
[1756872665455,1.85022311,111160.0,111150.0,0.00463435]
[1756872666787,1.85217311,111160.0,111150.0,0.00463435]
[1756872667198,1.9470491,111160.0,111150.0,0.00463435]
[1756872667493,1.85513311,111160.0,111150.0,0.00463435]
[1756872668431,1.85513311,111160.0,111150.0,0.00248435]
[1756872669932,1.85983325,111160.0,111150.0,0.00248435]
[1756872673178,1.85983325,111160.0,111150.0,0.00446435]
[1756872673386,1.85983325,111160.0,111150.0,0.00248435]
[1756872673604,1.85983325,111160.0,111150.0,0.00346435]
[1756872673817,1.85983325,111160.0,111150.0,0.00246435]
[1756872674461,1.95174924,111160.0,111150.0,0.00246435]
[1756872674944,1.95174924,111160.0,111150.0,0.00048435]
[1756872676515,1.85983325,111160.0,111150.0,0.00048435]
[1756872677113,1.70823325,111160.0,111150.0,0.00246435]
[1756872677338,1.85699325,111160.0,111150.0,0.00246435]
[1756872677598,1.86018325,111160.0,111150.0,0.00048435]
[1756872678271,1.86018325,111160.0,111150.0,0.00246435]
[1756872679120,1.87720383,111160.0,111150.0,0.00048435]
[1756872681093,1.852924,111160.0,111150.0,0.00048435]
[1756872681732,1.83590342,111160.0,111150.0,0.00048435]
[1756872682766,1.79608608,111160.0,111150.0,0.00048435]
[1756872683323,1.84464574,111160.0,111150.0,0.00048435]
[1756872683952,1.84465006,111160.0,111150.0,0.00048435]
[1756872687289,1.844665,111160.0,111150.0,0.00048435]
[1756872689141,1.841595,111160.0,111150.0,0.00246435]
[1756872689339,1.844785,111160.0,111150.0,0.00246435]
[1756872689749,1.844785,111160.0,111150.0,0.00048435]
[1756872690127,1.844785,111160.0,111150.0,0.00246435]
[1756872690331,0.9950835,111160.0,111150.0,0.00246435]
[1756872690532,1.844785,111160.0,111150.0,0.00048435]
[1756872691935,1.908225,111160.0,111150.0,0.00048435]
[1756872695606,2.00014099,111160.0,111150.0,0.00048435]
[1756872698008,1.908225,111160.0,111150.0,0.00048435]
[1756872705287,1.908065,111160.0,111150.0,0.00048435]
[1756872706273,1.87569189,111160.0,111150.0,0.00048435]
[1756872708124,1.87569444,111160.0,111150.0,0.00048435]
[1756872709139,1.91647651,111160.0,111150.0,0.00048435]
[1756872709573,1.91643651,111160.0,111150.0,0.00258435]
[1756872709792,1.76479651,111160.0,111150.0,0.00048435]
[1756872710009,1.70965651,111160.0,111150.0,0.00258435]
[1756872710231,1.8451395,111160.0,111150.0,0.00561435]
[1756872710892,1.71780005,111160.0,111150.0,0.00561435]
[1756872711101,1.8370374,111160.0,111150.0,0.00561435]
[1756872711305,1.82016824,111160.0,111150.0,0.00561435]
[1756872711515,1.82016824,111160.0,111150.0,0.00661435]
[1756872712340,1.79586769,111160.0,111150.0,0.00661435]
[1756872712570,1.79586769,111160.0,111150.0,0.00761435]
[1756872713404,1.64422769,111160.0,111150.0,0.00761435]
[1756872713614,1.79590769,111160.0,111150.0,0.00761435]
[1756872717508,1.64422769,111160.0,111150.0,0.00761435]
[1756872717921,1.79582769,111160.0,111150.0,0.00761435]
[1756872718121,1.21304893,111160.0,111150.0,0.00761435]
[1756872718392,1.34516338,111160.0,111150.0,0.00761435]
[1756872718598,1.34516338,111160.0,111150.0,0.18755137]
[1756872719436,1.34516338,111160.0,111150.0,0.00761435]
[1756872720510,1.55501413,111160.0,111150.0,0.00761435]
[1756872720725,1.70657413,111160.0,111150.0,0.00761435]
[1756872721867,1.28172338,111160.0,111150.0,0.00761435]
[1756872722805,0.81609056,111160.0,111150.0,0.00761435]
[1756872722984,1.24094131,111160.0,111150.0,0.00761435]
[1756872723357,1.24094131,111160.0,111150.0,0.18755137]
[1756872723563,1.24094131,111160.0,111150.0,0.00761435]
[1756872725577,1.4530141,111160.0,111150.0,0.00761435]
[1756872726644,0.81609056,111160.0,111150.0,0.00761435]
[1756872726845,1.4530141,111160.0,111150.0,0.00761435]
[1756872727434,0.81609056,111160.0,111150.0,0.00761435]
[1756872727635,1.4530141,111160.0,111150.0,0.00761435]
[1756872727914,1.4549241,111160.0,111150.0,0.00458435]
[1756872728726,1.4581141,111160.0,111150.0,0.00458435]
[1756872730013,1.3067141,111160.0,111150.0,0.00248435]
[1756872730230,1.4583141,111160.0,111150.0,0.00248435]
[1756872731727,1.3067141,111160.0,111150.0,0.00248435]
[1756872732149,1.4582741,111160.0,111150.0,0.00248435]
[1756872732555,0.82135056,111160.0,111150.0,0.00248435]
[1756872732745,1.3067141,111160.0,111150.0,0.00248435]
[1756872732961,1.4582741,111160.0,111150.0,0.00248435]
[1756872733256,1.3067141,111160.0,111150.0,0.00248435]
[1756872733531,1.4582341,111160.0,111150.0,0.00248435]
[1756872735166,1.4581941,111160.0,111150.0,0.00248435]
[1756872737316,1.4581941,111160.0,111150.0,0.00453435]
[1756872738374,1.4582741,111160.0,111150.0,0.00453435]
[1756872738580,1.4550841,111160.0,111150.0,0.00453435]
[1756872738714,1.4582741,111160.0,111150.0,0.00248435]
[1756872739117,1.3067141,111160.0,111150.0,0.00248435]
[1756872739317,1.32613294,111160.0,111150.0,0.00248435]
[1756872739585,1.47777294,111160.0,111150.0,0.00248435]
[1756872739792,1.32613294,111160.0,111150.0,0.00248435]
[1756872740399,1.47777294,111160.0,111150.0,0.00248435]
[1756872740828,1.32613294,111160.0,111150.0,0.00248435]
[1756872741030,1.47781294,111160.0,111150.0,0.00248435]
[1756872741310,1.32613294,111160.0,111150.0,0.00248435]
[1756872741484,1.47777294,111160.0,111150.0,0.00248435]
[1756872743232,1.89447444,111160.0,111150.0,0.00248435]
[1756872744223,1.33245668,111160.0,111150.0,0.00248435]
[1756872744426,1.48405668,111160.0,111150.0,0.00248435]
[1756872748198,1.80251845,111160.0,111150.0,0.00248435]
[1756872749398,1.48405668,111160.0,111150.0,0.00248435]
[1756872754351,1.32719668,111160.0,111150.0,0.00453435]
[1756872754546,1.47875668,111160.0,111150.0,0.00453435]
[1756872754773,1.48403668,111160.0,111150.0,0.00453435]
[1756872755061,1.48403668,111160.0,111150.0,0.00248435]
[1756872755415,1.80249845,111160.0,111150.0,0.00248435]
[1756872755578,1.48403668,111160.0,111150.0,0.00248435]
[1756872757202,1.80249845,111160.0,111150.0,0.00248435]
[1756872758635,1.80250114,111160.0,111150.0,0.00248435]
[1756872760245,1.48108937,111160.0,111150.0,0.00248435]
[1756872760452,0.84207583,111160.0,111150.0,0.00755435]
[1756872760654,1.47267294,111160.0,111150.0,0.00755435]
[1756872761201,1.32087294,111160.0,111150.0,0.00755435]
[1756872761418,1.47267294,111160.0,111150.0,0.00755435]
[1756872763239,0.6839494,111160.0,111150.0,0.00755435]
[1756872763449,1.47263294,111160.0,111150.0,0.00755435]
[1756872763664,1.47267294,111160.0,111150.0,0.00755435]
[1756872767518,1.47267294,111160.0,111150.0,0.00455435]
[1756872767726,0.8357494,111160.0,111150.0,0.00455435]
[1756872767952,1.47267294,111160.0,111150.0,0.00455435]
[1756872769572,1.47465294,111160.0,111150.0,0.00455435]
[1756872771335,1.47782294,111160.0,111150.0,0.00455435]
[1756872774403,1.47782294,111160.0,111150.0,0.00248435]
[1756872776188,0.51993702,111150.0,111140.0,0.1818359]
[1756872776383,1.08183478,111150.0,111140.0,0.18188287]
[1756872776606,1.08183478,111150.0,111140.0,0.00211697]
[1756872776607,1.08698478,111150.0,111140.0,0.00211697]
[1756872776812,1.11403628,111150.0,111140.0,0.00211697]
[1756872777237,1.11403628,111150.0,111140.0,0.00411697]
[1756872777661,1.11403628,111150.0,111140.0,0.00611697]
[1756872779009,1.11403628,111150.0,111140.0,0.00404697]
[1756872779863,1.11086628,111150.0,111140.0,0.00611697]
[1756872780061,1.11086628,111150.0,111140.0,0.00836638]
[1756872780062,1.11403628,111150.0,111140.0,0.00836638]
[1756872780214,1.11403628,111150.0,111140.0,0.00404697]
[1756872780414,1.11403628,111150.0,111140.0,0.00629638]
[1756872780616,1.55093628,111150.0,111140.0,0.00629638]
[1756872781171,1.55093628,111150.0,111140.0,0.00836638]
[1756872781371,1.55093628,111150.0,111140.0,0.00611697]
[1756872781585,1.55993027,111150.0,111140.0,0.00611697]
[1756872782120,1.55993027,111150.0,111140.0,0.00404697]
[1756872783316,1.55993027,111150.0,111140.0,0.00611697]
[1756872783860,1.55993027,111150.0,111140.0,0.18607018]
[1756872784880,1.2363185,111150.0,111140.0,0.18607018]
[1756872785061,1.55478027,111150.0,111140.0,0.18607018]
[1756872785262,1.55676027,111150.0,111140.0,0.18607018]
[1756872785480,1.66612759,111150.0,111140.0,0.18607018]
[1756872786037,1.66612759,111150.0,111140.0,0.00611697]
[1756872786237,1.66612759,111150.0,111140.0,0.00404697]
[1756872788124,1.68706641,111150.0,111140.0,0.00404697]
[1756872797796,1.70649163,111150.0,111140.0,0.00404697]
[1756872798385,1.27591367,111150.0,111140.0,0.00404697]
[1756872802283,1.27590994,111150.0,111140.0,0.00404697]
[1756872803299,1.26959163,111150.0,111140.0,0.00404697]
[1756872804101,1.27590908,111150.0,111140.0,0.00404697]
[1756872807324,1.33934908,111150.0,111140.0,0.00404697]
[1756872812264,1.33894908,111150.0,111140.0,0.00404697]
[1756872815374,1.33892173,111150.0,111140.0,0.00404697]
[1756872817749,1.18780173,111150.0,111140.0,0.00404697]
[1756872817954,1.33888173,111150.0,111140.0,0.00404697]
[1756872820139,1.18780173,111150.0,111140.0,0.00404697]
[1756872820295,1.33373173,111150.0,111140.0,0.00600697]
[1756872820481,1.33584173,111150.0,111140.0,0.00600697]
[1756872820673,1.33884173,111150.0,111140.0,0.00600697]
[1756872821294,1.33884173,111150.0,111140.0,0.00404697]
[1756872827142,1.36308907,111150.0,111140.0,0.00404697]
[1756872828392,1.37995163,111150.0,111140.0,0.00404697]
[1756872829877,1.37995209,111150.0,111140.0,0.00404697]
[1756872833114,0.955293,111150.0,111140.0,0.00404697]
[1756872833306,1.37995209,111150.0,111140.0,0.00404697]
[1756872836547,1.37995209,111150.0,111140.0,0.00204697]
[1756872836953,1.37995209,111150.0,111140.0,0.00304697]
[1756872837353,1.37995209,111150.0,111140.0,4.697e-05]
[1756872837812,1.37995209,111150.0,111140.0,0.00104697]
[1756872838155,1.33630688,111150.0,111140.0,0.00104697]
[1756872838357,1.38002289,111150.0,111140.0,0.00104697]
[1756872842697,1.3800307,111150.0,111140.0,0.00104697]
[1756872843375,1.33631469,111150.0,111140.0,0.00104697]
[1756872843549,1.38003478,111150.0,111140.0,0.00104697]
[1756872846095,1.38003875,111150.0,111140.0,0.00104697]
[1756872846998,1.38003875,111150.0,111140.0,0.00300697]
[1756872847455,1.5926197,111150.0,111140.0,0.00104697]
[1756872850786,1.91123972,111150.0,111140.0,0.00104697]
[1756872852950,1.96909986,111150.0,111140.0,0.00104697]
[1756872853154,2.01446808,111150.0,111140.0,0.00104697]
[1756872853386,1.96590842,111150.0,111140.0,0.00104697]
[1756872854371,1.99017345,111150.0,111140.0,0.00104697]
[1756872854576,1.96471596,111150.0,111140.0,4.697e-05]
[1756872854776,1.96571596,111150.0,111140.0,4.697e-05]
[1756872855284,1.96671596,111150.0,111140.0,4.697e-05]
[1756872855485,1.96571596,111150.0,111140.0,4.697e-05]
[1756872855690,1.96471596,111150.0,111140.0,4.697e-05]
[1756872855876,1.96571596,111150.0,111140.0,4.697e-05]
[1756872856063,1.96671596,111150.0,111140.0,4.697e-05]
[1756872856266,2.0153308,111150.0,111140.0,4.697e-05]
[1756872859170,2.97119086,111150.0,111140.0,4.697e-05]
[1756872859803,2.97115645,111150.0,111140.0,4.697e-05]
[1756872860078,2.01529639,111150.0,111140.0,4.697e-05]
[1756872862313,3.02115645,111150.0,111140.0,4.697e-05]
[1756872862818,3.04545108,111150.0,111140.0,4.697e-05]
[1756872863665,2.89437108,111150.0,111140.0,4.697e-05]
[1756872863865,3.03641709,111150.0,111140.0,4.697e-05]
[1756872864153,2.08055703,111150.0,111140.0,4.697e-05]
[1756872865150,1.92951703,111150.0,111140.0,4.697e-05]
[1756872865369,2.08055703,111150.0,111140.0,4.697e-05]
[1756872868419,3.03641709,111150.0,111140.0,4.697e-05]
[1756872870195,3.03640243,111150.0,111140.0,4.697e-05]
[1756872871080,3.03008666,111150.0,111140.0,4.697e-05]
[1756872871304,3.03639676,111150.0,111140.0,4.697e-05]
[1756872872700,0.59089203,111140.0,111130.0,0.0004]
[1756872872953,2.81236744,111140.0,111130.0,0.0004]
[1756872873190,2.81432744,111140.0,111130.0,0.00252]
[1756872873391,2.81793573,111140.0,111130.0,0.00252]
[1756872873614,2.81793537,111140.0,111130.0,0.00252]
[1756872873955,2.82109537,111140.0,111130.0,0.00352]
[1756872875671,2.84377127,111140.0,111130.0,0.00352]
[1756872876818,2.84377127,111140.0,111130.0,0.0014]
[1756872877014,2.84377127,111140.0,111130.0,0.00352]
[1756872877245,2.84377127,111140.0,111130.0,0.0014]
[1756872880382,2.93568726,111140.0,111130.0,0.0014]
[1756872880586,2.93570144,111140.0,111130.0,0.0014]
[1756872880789,2.93570144,111140.0,111130.0,0.00353]
[1756872880985,2.93570144,111140.0,111130.0,0.0014]
[1756872881205,2.96810409,111140.0,111130.0,0.0014]
[1756872881423,2.8761881,111140.0,111130.0,0.0014]
[1756872883062,1.92032804,111140.0,111130.0,0.0014]
[1756872886119,1.92032804,111140.0,111130.0,0.0004]
[1756872886279,1.92132804,111140.0,111130.0,0.0004]
[1756872886489,1.92232804,111140.0,111130.0,0.0004]
[1756872886685,1.92132804,111140.0,111130.0,0.0004]
[1756872887195,1.92232804,111140.0,111130.0,0.0004]
[1756872890143,1.8980974,111140.0,111130.0,0.0004]
[1756872892536,1.94665706,111140.0,111130.0,0.0004]
[1756872893080,1.8980974,111140.0,111130.0,0.0004]
[1756872894443,1.89811468,111140.0,111130.0,0.0004]
[1756872896541,1.92394606,111140.0,111130.0,0.0004]
[1756872897157,1.89811468,111140.0,111130.0,0.0004]
[1756872900272,1.74707468,111140.0,111130.0,0.0004]
[1756872900411,1.89807468,111140.0,111130.0,0.0004]
[1756872901431,1.74707468,111140.0,111130.0,0.0004]
[1756872901631,1.89807468,111140.0,111130.0,0.0004]
[1756872902682,1.89807468,111140.0,111130.0,0.00253]
[1756872902683,1.89491468,111140.0,111130.0,0.00253]
[1756872902887,1.89295468,111140.0,111130.0,0.00253]
[1756872903092,1.89295468,111140.0,111130.0,0.00562]
[1756872903292,1.89500468,111140.0,111130.0,0.00253]
[1756872903556,1.89798468,111140.0,111130.0,0.00253]
[1756872904094,1.89798468,111140.0,111130.0,0.0004]
[1756872904721,1.89798468,111140.0,111130.0,0.00253]
[1756872905117,1.89798468,111140.0,111130.0,0.0004]
[1756872906360,1.89798468,111140.0,111130.0,0.00253]
[1756872906697,1.89798468,111140.0,111130.0,0.0004]
[1756872907571,1.36710411,111140.0,111130.0,0.0004]
[1756872909396,1.36709768,111140.0,111130.0,0.0004]
[1756872913138,1.45901367,111140.0,111130.0,0.0004]
[1756872913658,1.36709768,111140.0,111130.0,0.0004]
[1756872914261,1.41565734,111140.0,111130.0,0.0004]
[1756872914480,1.84063683,111140.0,111130.0,0.0004]
[1756872916546,1.41565734,111140.0,111130.0,0.0004]
[1756872917345,1.84063683,111140.0,111130.0,0.0004]
[1756872918368,1.84906824,111140.0,111130.0,0.0004]
[1756872919889,1.94098423,111140.0,111130.0,0.0004]
[1756872920454,1.84906824,111140.0,111130.0,0.0004]
[1756872920883,1.84908017,111140.0,111130.0,0.0004]
[1756872922498,1.84908017,111140.0,111130.0,1e-08]
[1756872922703,0.02267589,111130.0,111120.0,0.0004]
[1756872922914,1.77070473,111130.0,111120.0,0.0004]
[1756872923099,1.79361393,111130.0,111120.0,0.0004]
[1756872923590,1.88411801,111130.0,111120.0,0.0004]
[1756872923958,1.93411801,111130.0,111120.0,0.0004]
[1756872924155,1.90882826,111130.0,111120.0,0.0004]
[1756872924358,1.93411709,111130.0,111120.0,0.0014]
[1756872925153,1.93411709,111130.0,111120.0,0.0004]
[1756872925354,1.88754218,111130.0,111120.0,0.0004]
[1756872925887,1.88654218,111130.0,111120.0,0.0004]
[1756872926688,1.94149497,111130.0,111120.0,0.0004]
[1756872926926,1.99206988,111130.0,111120.0,0.0004]
[1756872927205,1.99006988,111130.0,111120.0,0.0004]
[1756872927604,1.92979489,111130.0,111120.0,0.0004]
[1756872927838,1.91371512,111130.0,111120.0,0.0004]
[1756872928013,1.9541149,111130.0,111120.0,0.0004]
[1756872928316,1.95878023,111130.0,111120.0,0.0004]
[1756872928518,1.84019822,111130.0,111120.0,0.0004]
[1756872928713,2.08303421,111130.0,111120.0,0.0004]
[1756872929894,1.99111822,111130.0,111120.0,0.0004]
[1756872931089,1.9911093,111130.0,111120.0,0.0004]
[1756872933267,0.54092442,111120.0,111110.0,0.0004]
[1756872933546,1.75554765,111120.0,111110.0,0.0004]
[1756872933735,1.75768765,111120.0,111110.0,0.0004]
[1756872933905,1.78781446,111120.0,111110.0,0.0004]
[1756872935645,1.63689446,111120.0,111110.0,0.0004]
[1756872935850,1.78781446,111120.0,111110.0,0.0004]
[1756872936515,1.81728373,111120.0,111110.0,0.0004]
[1756872937276,1.81728373,111120.0,111110.0,0.00247]
[1756872937513,1.81728373,111120.0,111110.0,0.0004]
[1756872939348,1.77362316,111120.0,111110.0,0.0004]
[1756872939547,1.81721642,111120.0,111110.0,0.0004]
[1756872939892,1.86721642,111120.0,111110.0,0.0004]
[1756872941327,1.88130665,111120.0,111110.0,0.0004]
[1756872941522,1.88129615,111120.0,111110.0,0.0004]
[1756872943539,1.03133717,111120.0,111110.0,0.00242]
[1756872943711,1.03133717,111120.0,111110.0,0.0004]
[1756872943907,1.88129615,111120.0,111110.0,0.0004]
[1756872945287,1.88129615,111120.0,111110.0,0.00242]
[1756872945491,1.88129615,111120.0,111110.0,0.0004]
[1756872945690,1.03133717,111120.0,111110.0,0.0004]
[1756872945845,1.88129615,111120.0,111110.0,0.0004]
[1756872947137,2.53216667,111120.0,111110.0,0.0004]
[1756872947361,2.26892135,111120.0,111110.0,0.0004]
[1756872947561,2.14776135,111120.0,111110.0,0.0004]
[1756872947779,0.61361652,111110.0,111100.0,0.10562119]
[1756872948020,0.92675835,111110.0,111100.0,0.10562119]